bitfinex/quotes_ETHUSD_20250517
["timestamp","ask_amount","ask_price","bid_price","bid_amount"]
[1747486532071,1.67060691,2474.0,2473.5,0.7781]
[1747486532298,4.04232578,2473.9,2473.5,0.7781]
[1747486532675,4.04269081,2473.6,2473.5,0.7781]
[1747486532879,4.04269081,2473.6,2473.3,8.5291]
[1747486533080,4.0430177,2473.4,2473.3,9.43022737]
[1747486533278,7.752,2473.8,2473.3,9.43022737]
[1747486533573,4.04287174,2473.5,2473.3,9.43022737]
[1747486533800,4.0430177,2473.4,2473.3,0.7781]
[1747486534001,4.04292975,2473.5,2473.3,0.7781]
[1747486534202,4.0430177,2473.4,2473.3,0.7781]
[1747486534704,4.04290671,2473.5,2473.3,0.7781]
[1747486535074,12.0425765,2473.7,2473.3,0.7781]
[1747486535604,4.04285817,2473.5,2473.3,0.7781]
[1747486535775,4.04285817,2473.5,2473.3,1.63101]
[1747486537713,4.0430177,2473.4,2473.3,0.7781]
[1747486539317,4.04255776,2473.7,2473.3,0.7781]
[1747486539491,4.04285795,2473.5,2473.3,0.7781]
[1747486540692,1.67060691,2474.0,2473.4,0.8117]
[1747486540888,4.04255099,2473.7,2473.4,0.8117]
[1747486541413,4.04274376,2473.6,2473.4,2.07229728]
[1747486541614,4.04312738,2473.4,2473.0,0.8117]
[1747486541808,4.0430997,2473.4,2473.1,7.75]
[1747486542982,4.04334465,2473.2,2473.1,7.75]
[1747486543183,4.04258241,2473.7,2473.1,7.75]
[1747486543382,4.04317843,2473.4,2473.1,7.75]
[1747486543584,4.04293855,2473.5,2473.1,8.65450279]
[1747486543783,12.85042682,2473.8,2473.1,8.65450279]
[1747486544017,4.04307356,2473.4,2473.1,8.65450279]
[1747486544521,4.04333343,2473.3,2473.1,8.65450279]
[1747486545622,4.04334465,2473.2,2473.1,8.65450279]
[1747486545919,4.04334465,2473.2,2473.1,7.75]
[1747486546997,4.04325759,2473.3,2473.1,7.75]
[1747486549725,0.8138,2473.3,2472.8,0.48332789]
[1747486549926,4.04330328,2473.3,2472.9,7.75]
[1747486550237,4.04318117,2473.3,2472.9,7.75]
[1747486550439,4.04342999,2473.2,2472.9,7.75]
[1747486551845,4.04342999,2473.2,2472.9,8.23332789]
[1747486553445,4.04308551,2473.4,2472.9,8.23332789]
[1747486553446,0.8138,2473.5,2472.9,8.23332789]
[1747486553622,4.04343178,2473.2,2472.9,8.23332789]
[1747486553918,4.04343178,2473.2,2472.9,9.42487783]
[1747486554839,4.04295435,2473.5,2473.1,0.7694]
[1747486555214,4.04295174,2473.5,2473.1,0.7694]
[1747486555544,4.04295174,2473.5,2473.1,4.8128845]
[1747486555844,4.04295174,2473.5,2473.1,6.64104022]
[1747486556228,4.04305559,2473.4,2473.1,2.59755572]
[1747486556544,4.04296638,2473.5,2473.1,2.59755572]
[1747486557142,4.04304906,2473.4,2473.1,2.59755572]
[1747486557947,4.0429479,2473.5,2473.1,2.59755572]
[1747486559151,7.725,2473.7,2473.1,8.5194]
[1747486559345,4.04318008,2473.4,2473.1,8.5194]
[1747486559538,4.04321023,2473.3,2473.1,8.5194]
[1747486560231,4.04325496,2473.3,2473.1,8.5194]
[1747486560840,4.04309665,2473.4,2473.1,8.5194]
[1747486561017,4.04309665,2473.4,2473.1,9.94320843]
[1747486561757,4.04295341,2473.5,2473.1,9.94320843]
[1747486562052,4.04262343,2473.7,2473.1,13.98670925]
[1747486562346,5.71267342,2474.0,2473.3,0.7866]
[1747486562534,5.71267342,2474.0,2473.6,0.7866]
[1747486562535,4.04227779,2473.9,2473.6,0.7866]
[1747486562845,5.71271439,2474.0,2473.6,9.01955226]
[1747486563033,4.0422241,2473.9,2473.6,9.01955226]
[1747486563238,1.67060691,2474.0,2473.6,9.01955226]
[1747486563413,4.04220357,2473.9,2473.6,9.01955226]
[1747486563763,4.04220357,2473.9,2473.6,1.26955226]
[1747486564064,5.71265915,2474.0,2473.7,7.75]
[1747486564217,5.71265915,2474.0,2473.7,9.1045567]
[1747486564552,4.04231955,2473.9,2473.7,9.1045567]
[1747486565259,4.04236397,2473.8,2473.7,1.3545567]
[1747486565558,4.04267311,2473.7,2473.6,7.75]
[1747486565719,4.04267311,2473.7,2473.5,8.23332789]
[1747486565917,4.04242317,2473.8,2473.5,8.23332789]
[1747486567019,11.75798304,2474.1,2473.6,4.82923708]
[1747486567328,4.04206877,2474.0,2473.6,0.7866]
[1747486567525,4.04206877,2474.0,2473.7,1.30626894]
[1747486569352,4.0419663,2474.1,2473.7,1.30626894]
[1747486570342,1.67060691,2474.4,2473.7,1.30626894]
[1747486570343,5.71212845,2474.4,2473.8,0.7866]
[1747486570622,4.04169087,2474.3,2473.8,0.7866]
[1747486570921,4.0418138,2474.2,2473.9,0.61353019]
[1747486573068,4.0418138,2474.2,2474.0,7.749]
[1747486573454,4.04187381,2474.1,2473.9,0.61353019]
[1747486573765,4.04195956,2474.1,2473.9,7.749]
[1747486575567,4.04203718,2474.0,2473.8,0.7866]
[1747486575729,4.04196977,2474.1,2473.8,8.4866]
[1747486576059,4.04208851,2474.0,2473.8,8.4866]
[1747486576255,4.04194289,2474.1,2473.8,9.33526]
[1747486577940,4.04204963,2474.0,2473.8,9.33526]
[1747486578336,4.04220057,2473.9,2473.8,8.54866]
[1747486578660,4.04220057,2473.9,2473.8,7.7]
[1747486578961,4.04220057,2473.9,2473.7,7.7]
[1747486580961,4.04236397,2473.8,2473.7,7.7]
[1747486581659,4.04236397,2473.8,2473.6,0.7524]
[1747486581959,4.0422652,2473.9,2473.6,8.4524]
[1747486582158,4.0422652,2473.9,2473.6,11.49617027]
[1747486582556,4.04210993,2474.0,2473.6,11.49617027]
[1747486584458,4.04194191,2474.1,2473.6,15.5387582]
[1747486584627,4.04173292,2474.2,2473.7,0.7634]
[1747486584830,4.04173292,2474.2,2473.8,5.1930481]
[1747486585176,5.71208789,2474.4,2473.9,4.80553853]
[1747486585379,4.04162706,2474.3,2473.9,0.7634]
[1747486585839,4.04180144,2474.2,2473.9,0.7634]
[1747486586272,4.04189204,2474.1,2473.9,0.7634]
[1747486586585,4.04178693,2474.2,2473.9,1.35905785]
[1747486586734,4.04187264,2474.2,2473.9,1.35905785]
[1747486587367,4.04179571,2474.2,2473.9,1.35905785]
[1747486587551,4.04190292,2474.1,2473.9,1.35905785]
[1747486587767,4.04190292,2474.1,2473.9,0.7634]
[1747486587935,4.04179956,2474.2,2473.9,0.7634]
[1747486588332,4.04187416,2474.1,2473.9,0.7634]
[1747486588538,4.04180133,2474.2,2473.9,0.7634]
[1747486588749,4.04171045,2474.2,2473.9,0.7634]
[1747486589176,4.04187558,2474.1,2473.9,0.7634]
[1747486589355,4.04177999,2474.2,2473.9,8.4624]
[1747486589564,4.04160493,2474.3,2473.9,8.4624]
[1747486589881,4.04180998,2474.2,2473.9,9.30864]
[1747486592365,4.04198602,2474.1,2473.9,9.30864]
[1747486594894,4.04178364,2474.2,2473.9,9.30864]
[1747486595097,4.04171045,2474.2,2473.9,9.30864]
[1747486595610,4.04187748,2474.1,2473.9,9.30864]
[1747486596388,4.04179523,2474.2,2473.9,9.30864]
[1747486597986,4.04162806,2474.3,2473.9,9.30864]
[1747486598687,4.0417331,2474.2,2473.9,9.30864]
[1747486599889,3.9417331,2474.2,2473.9,9.30864]
[1747486600753,4.04189055,2474.1,2473.9,9.30864]
[1747486600950,4.04203718,2474.0,2473.9,7.699]
[1747486601173,4.04203718,2474.0,2473.8,8.18232789]
[1747486602153,4.04197259,2474.1,2473.8,8.18232789]
[1747486603395,4.04169969,2474.3,2473.9,0.8104]
[1747486603679,4.0417142,2474.2,2473.9,0.8104]
[1747486603884,4.0417142,2474.2,2473.9,2.11390834]
[1747486604987,4.04159534,2474.3,2473.9,2.11390834]
[1747486605204,4.04174686,2474.2,2473.9,2.11390834]
[1747486605375,4.04174686,2474.2,2473.9,2.59723623]
[1747486606068,4.04159534,2474.3,2473.9,2.59723623]
[1747486606263,4.0410007,2474.7,2474.2,0.8104]
[1747486606467,1.60586055,2475.0,2474.3,7.688]
[1747486606673,4.04092337,2474.7,2474.3,7.688]
[1747486607496,1.67060691,2474.9,2474.3,7.688]
[1747486607671,4.04081396,2474.8,2474.3,11.72942795]
[1747486607875,4.04081396,2474.8,2474.4,1.65814664]
[1747486608804,4.04092069,2474.7,2474.4,1.65814664]
[1747486608956,4.0411546,2474.6,2474.4,1.65814664]
[1747486611396,4.04097919,2474.7,2474.4,1.65814664]
[1747486611896,4.04118834,2474.6,2474.4,1.65814664]
[1747486612100,4.04123972,2474.5,2474.3,7.687]
[1747486613003,4.04123972,2474.5,2474.2,8.4974]
[1747486613215,0.8248,2474.6,2474.1,8.17032789]
[1747486613371,4.86591282,2474.6,2474.1,8.17032789]
[1747486613571,4.04129504,2474.5,2474.1,8.17032789]
[1747486613873,4.04146397,2474.4,2474.1,8.17032789]
[1747486614473,4.04146397,2474.4,2474.1,7.687]
[1747486614673,4.04146397,2474.4,2474.1,8.90824563]
[1747486615383,4.04165906,2474.3,2474.1,7.687]
[1747486615579,4.04167584,2474.3,2474.1,7.687]
[1747486616111,4.04146442,2474.4,2474.1,7.687]
[1747486617503,4.04146229,2474.4,2474.1,7.687]
[1747486618324,0.8248,2474.6,2474.1,12.95011524]
[1747486618509,11.72596103,2474.7,2474.2,4.83440765]
[1747486619019,4.04105923,2474.6,2474.2,4.83440765]
[1747486619722,4.04139598,2474.4,2474.1,8.9082519]
[1747486620083,4.04129816,2474.5,2474.1,8.9082519]
[1747486620494,4.04129816,2474.5,2474.1,7.687]
[1747486620695,4.04139725,2474.4,2474.1,7.687]
[1747486621007,7.685,2474.7,2474.1,7.687]
[1747486621208,4.041358,2474.5,2474.1,7.687]
[1747486621434,4.04122044,2474.5,2474.1,7.687]
[1747486622734,7.685,2474.7,2474.0,1.27602789]
[1747486623034,4.04157355,2474.3,2474.1,7.687]
[1747486623833,4.84574016,2474.4,2474.1,7.687]
[1747486623997,4.84578011,2474.4,2474.1,7.687]
[1747486624334,4.04155643,2474.3,2474.1,7.687]
[1747486624633,4.04147447,2474.4,2474.1,7.687]
[1747486624831,4.04077043,2474.8,2474.3,4.04143928]
[1747486625132,1.67060691,2474.9,2474.4,4.04137039]
[1747486625133,5.71124699,2474.9,2474.4,4.04137039]
[1747486625317,4.04076508,2474.8,2474.3,0.819]
[1747486625693,4.04076508,2474.8,2474.3,4.86044989]
[1747486629241,5.71119535,2474.9,2474.4,4.04124517]
[1747486629944,1.67060691,2474.9,2474.5,4.04120865]
[1747486630100,5.71118565,2474.9,2474.4,4.04130274]
[1747486630299,5.71118565,2474.9,2474.4,5.10193184]
[1747486631733,4.04057874,2474.9,2474.4,5.10193184]
[1747486632938,4.04074257,2474.8,2474.4,5.10193184]
[1747486634535,4.04090905,2474.7,2474.4,1.0606291]
[1747486634723,4.0408216,2474.8,2474.5,7.686]
[1747486634927,8.4883,2475.1,2474.5,7.686]
[1747486635107,4.04066254,2474.9,2474.5,11.72721975]
[1747486635327,4.04066254,2474.9,2474.5,7.686]
[1747486635949,4.04066254,2474.9,2474.5,11.72721403]
[1747486636136,4.04045497,2475.0,2474.5,11.72721403]
[1747486636339,4.04064821,2474.9,2474.5,7.686]
[1747486638058,4.04075769,2474.8,2474.5,7.686]
[1747486640090,8.4863,2475.1,2474.5,7.686]
[1747486640228,4.79232044,2474.5,2474.4,0.48332789]
[1747486640466,7.682,2474.9,2474.4,0.48332789]
[1747486640662,12.79379081,2473.6,2473.5,1.28136749]
[1747486641005,30.86198697,2473.6,2473.5,0.20740158]
[1747486641167,32.09229557,2473.6,2473.5,0.20740158]
[1747486641362,32.39756105,2473.6,2473.5,0.20740158]
[1747486641565,31.16725245,2473.6,2473.5,0.20740158]
[1747486643599,31.16725245,2473.6,2472.3,8.012]
[1747486643600,4.04449343,2472.5,2472.3,8.012]
[1747486646183,4.04465296,2472.4,2472.3,8.012]
[1747486646685,4.04465296,2472.4,2472.1,8.8458]
[1747486647087,4.04482811,2472.3,2471.8,4.9073568]
[1747486647285,4.04482811,2472.3,2471.9,8.015]
[1747486648915,0.7511,2472.7,2471.9,12.06036267]
[1747486649115,4.04471038,2472.4,2471.9,12.06036267]
[1747486649611,4.04483968,2472.3,2472.0,8.017]
[1747486650019,4.04493884,2472.3,2472.0,8.017]
[1747486650225,4.04473812,2472.4,2472.0,8.017]
[1747486650722,4.04441659,2472.6,2472.1,4.04505519]
[1747486650926,4.044492,2472.5,2472.1,4.04505519]
[1747486651125,4.04452517,2472.5,2472.0,8.017]
[1747486651287,4.04476192,2472.4,2472.0,8.017]
[1747486651604,4.04476192,2472.4,2472.0,9.47895685]
[1747486651811,4.04484427,2472.3,2472.0,9.47895685]
[1747486652007,4.0445455,2472.5,2472.0,9.47895685]
[1747486652325,4.04468681,2472.4,2472.0,9.47895685]
[1747486652920,4.04468681,2472.4,2472.0,1.46195685]
[1747486652921,4.04508089,2472.2,2472.0,1.46195685]
[1747486653130,4.04508089,2472.2,2471.8,2.55712687]
[1747486653428,4.04508089,2472.2,2472.1,8.017]
[1747486654521,4.04487254,2472.3,2472.1,8.017]
[1747486655427,4.04487254,2472.3,2471.8,6.60270062]
[1747486655624,4.04487254,2472.3,2471.9,8.017]
[1747486656007,4.04547109,2471.9,2471.8,0.03]
[1747486659103,4.04525445,2472.1,2471.8,0.03]
[1747486659306,4.04538496,2472.0,2471.8,0.03]
[1747486659509,4.04547109,2471.9,2471.8,0.03]
[1747486662865,4.0453946,2472.0,2471.8,0.03]
[1747486663156,4.04519022,2472.1,2471.8,0.03]
[1747486663351,4.04506579,2472.2,2471.8,0.03]
[1747486663507,4.04500482,2472.2,2471.9,0.7876]
[1747486664345,4.0451518,2472.1,2471.9,0.7876]
[1747486664543,4.04503219,2472.2,2471.9,0.7876]
[1747486665445,4.04488417,2472.3,2471.9,0.7876]
[1747486665646,4.04467888,2472.4,2471.9,4.83301436]
[1747486665849,4.04467888,2472.4,2471.9,5.8448254]
[1747486667060,4.04448938,2472.5,2471.9,1.79941104]
[1747486667251,4.04494825,2472.3,2471.9,1.79941104]
[1747486667556,4.04500298,2472.2,2471.9,1.79941104]
[1747486669165,4.04519611,2472.1,2471.9,0.7876]
[1747486669329,4.04519611,2472.1,2472.0,8.02]
[1747486670640,4.04519611,2472.1,2471.9,0.7876]
[1747486670832,4.04530744,2472.0,2471.9,7.924]
[1747486671164,4.04530744,2472.0,2471.8,7.954]
[1747486671364,4.04465296,2472.4,2471.8,7.954]
[1747486671568,4.04529065,2472.1,2471.8,7.954]
[1747486672573,4.04533565,2472.0,2471.8,7.954]
[1747486673056,4.04547109,2471.9,2471.8,7.954]
[1747486673429,4.04547109,2471.9,2471.8,0.03]
[1747486678966,11.94147109,2471.9,2471.8,0.03]
[1747486686877,4.04547109,2471.9,2471.8,0.03]
[1747486694787,4.04510009,2472.2,2471.8,7.956]
[1747486695159,4.04515187,2472.1,2471.8,7.956]
[1747486695375,4.04507166,2472.2,2471.8,7.956]
[1747486695665,4.04518153,2472.1,2471.8,7.956]
[1747486696996,4.04547109,2471.9,2471.8,0.03]
[1747486700887,0.7624,2472.3,2471.8,0.03]
[1747486701134,4.04538731,2472.0,2471.8,0.03]
[1747486704422,4.04547109,2471.9,2471.8,0.03]
[1747486708030,11.82704827,2472.2,2471.8,0.03]
[1747486708234,4.04540785,2472.0,2471.8,0.03]
[1747486708729,4.04547109,2471.9,2471.8,0.03]
[1747486709039,4.04545584,2472.0,2471.8,0.03]
[1747486709330,4.04547109,2471.9,2471.8,0.03]
[1747486710021,4.04531867,2472.0,2471.8,0.03]
[1747486710022,4.04537963,2472.0,2471.8,0.03]
[1747486710438,4.04547109,2471.9,2471.8,0.03]
[1747486716933,4.84307109,2471.9,2471.8,0.03]
[1747486717316,4.04547109,2471.9,2471.8,0.03]
[1747486718146,12.84687109,2471.9,2471.8,0.03]
[1747486718833,15.067478,2471.9,2471.8,0.03]
[1747486719250,1.3514,2471.4,2471.2,0.64491657]
[1747486719457,5.39883594,2470.7,2470.6,0.48479674]
[1747486719613,12.84883594,2470.7,2470.6,0.48479674]
[1747486719955,12.68583594,2470.7,2470.6,0.48479674]
[1747486720328,14.78583594,2470.7,2470.6,0.48479674]
[1747486720625,2.1,2470.7,2470.6,0.48479674]
[1747486720829,0.8014,2471.0,2470.6,0.48479674]
[1747486721034,4.04669703,2471.2,2470.7,1.23615583]
[1747486721347,4.04661702,2471.2,2470.7,1.23615583]
[1747486721525,4.04688236,2471.1,2470.7,1.23615583]
[1747486723007,20.71551766,2471.3,2470.7,5.28350982]
[1747486723008,16.66901782,2471.3,2470.7,5.28350982]
[1747486723216,20.7155609,2471.3,2470.7,5.28350982]
[1747486723535,20.71558991,2471.3,2470.7,5.28350593]
[1747486723723,20.71558991,2471.3,2470.8,4.04717538]
[1747486723925,19.91418991,2471.3,2470.8,4.04717538]
[1747486724650,8.02461782,2471.3,2470.8,1.71803779]
[1747486724828,4.0461359,2471.5,2471.0,4.04686644]
[1747486725025,4.04624152,2471.5,2471.0,7.81]
[1747486725455,4.04624152,2471.5,2471.0,11.85693437]
[1747486725653,6.14624152,2471.5,2471.0,13.69772403]
[1747486725851,4.04624152,2471.5,2471.0,13.69772403]
[1747486726653,1.43680268,2471.6,2471.0,7.81]
[1747486726950,4.04697772,2471.0,2470.7,7.81]
[1747486727162,4.04612583,2471.5,2470.7,8.5957]
[1747486727471,4.04677197,2471.2,2470.7,8.5957]
[1747486727768,4.0468092,2471.1,2470.7,8.5957]
[1747486727988,4.0468092,2471.1,2470.7,9.86002947]
[1747486728859,4.0468092,2471.1,2470.7,2.05002947]
[1747486729062,0.776,2471.3,2470.7,0.7857]
[1747486729266,4.04713104,2470.9,2470.7,8.5957]
[1747486729563,4.04701813,2471.0,2470.7,8.5957]
[1747486729920,4.04701813,2471.0,2470.7,0.7857]
[1747486731675,4.04713095,2470.9,2470.7,0.7857]
[1747486732172,4.04700324,2471.0,2470.7,0.7857]
[1747486732964,4.04688968,2471.1,2470.7,0.7857]
[1747486733571,4.04694699,2471.0,2470.7,0.7857]
[1747486734425,4.04694699,2471.0,2470.7,8.6127]
[1747486734666,4.04686894,2471.1,2470.7,8.6127]
[1747486735171,4.04208313,2471.1,2470.7,8.6127]
[1747486736063,4.04678078,2471.1,2470.5,4.83097989]
[1747486736368,4.04678078,2471.1,2470.6,11.87459846]
[1747486736369,4.0469152,2471.1,2470.6,11.87459846]
[1747486736523,4.0469152,2471.1,2470.6,12.35296112]
[1747486736723,4.04694126,2471.1,2470.6,7.827]
[1747486736937,4.04694126,2471.1,2470.5,4.83103454]
[1747486737163,4.04666482,2471.2,2470.6,11.87453204]
[1747486737348,4.0468647,2471.1,2470.6,11.87453204]
[1747486738778,4.04694484,2471.0,2470.6,4.04753204]
[1747486739079,4.04694484,2471.0,2470.6,11.87453204]
[1747486740636,4.0471526,2470.9,2470.6,7.827]
[1747486740917,4.04721454,2470.9,2470.6,7.827]
[1747486741217,4.04661702,2471.2,2470.6,7.827]
[1747486741380,8.0,2471.1,2470.6,7.827]
[1747486741707,4.04725119,2470.9,2470.6,7.827]
[1747486741999,4.04702446,2471.0,2470.6,7.827]
[1747486742169,0.8238,2470.9,2469.8,0.30363867]
[1747486742375,4.0471209,2470.9,2470.4,4.04782729]
[1747486742682,4.04694455,2471.0,2470.5,0.7833]
[1747486742876,4.0471961,2470.9,2470.5,0.7833]
[1747486743079,4.04698096,2471.0,2470.5,6.50160349]
[1747486743405,4.04702874,2471.0,2470.5,6.50165084]
[1747486743794,4.04684923,2471.1,2470.6,4.04759953]
[1747486743976,4.04684923,2471.1,2470.7,0.7833]
[1747486744173,2.49440691,2471.5,2470.8,4.04725949]
[1747486744492,4.04639719,2471.4,2471.0,0.7833]
[1747486744698,4.04620884,2471.5,2471.0,4.83017168]
[1747486745008,4.04636993,2471.4,2471.0,0.7833]
[1747486745306,4.04639355,2471.4,2471.1,7.827]
[1747486747095,4.04647415,2471.3,2471.1,7.827]
[1747486748028,4.04647415,2471.3,2471.0,0.7833]
[1747486748221,4.04664298,2471.2,2471.0,0.7833]
[1747486748518,4.04672053,2471.2,2471.0,0.7833]
[1747486749711,4.04653038,2471.3,2471.0,0.7833]
[1747486750023,4.04653038,2471.3,2471.0,2.13783405]
[1747486750593,4.04629112,2471.4,2471.0,0.7833]
[1747486750794,4.04661793,2471.2,2471.0,0.7833]
[1747486751102,1.67060691,2471.9,2471.2,4.04649629]
[1747486751422,4.04581099,2471.7,2471.3,7.827]
[1747486751626,4.04568932,2471.8,2471.4,0.8192]
[1747486752191,4.04568932,2471.8,2471.4,4.86546436]
[1747486752387,4.0455425,2471.9,2471.4,4.86546436]
[1747486752589,12.04534768,2472.0,2471.4,0.8192]
[1747486753006,4.04564747,2471.8,2471.4,0.8192]
[1747486753227,4.04582985,2471.7,2471.4,0.8192]
[1747486753418,4.04612583,2471.5,2471.4,0.8192]
[1747486754528,4.04589832,2471.7,2471.4,0.8192]
[1747486754529,4.04604379,2471.6,2471.4,0.8192]
[1747486755128,4.04612583,2471.5,2471.4,0.8192]
[1747486755327,4.04636634,2471.4,2471.2,0.7838]
[1747486755627,6.24185061,2471.8,2471.0,8.6098]
[1747486755628,4.04672578,2471.2,2471.0,8.6098]
[1747486755925,4.04672578,2471.2,2471.0,0.7838]
[1747486755926,4.04678078,2471.1,2471.0,0.7838]
[1747486756135,4.04645328,2471.3,2470.7,8.6098]
[1747486756294,4.04720617,2470.9,2470.7,8.6098]
[1747486756490,2.19620268,2471.4,2470.7,8.6098]
[1747486756852,4.04716702,2470.9,2470.7,7.826]
[1747486757216,4.04703077,2471.0,2470.7,7.826]
[1747486757414,4.0469799,2471.0,2470.7,7.826]
[1747486757729,4.04676255,2471.2,2470.7,7.826]
[1747486757911,4.04676255,2471.2,2470.7,13.20361189]
[1747486758114,4.04676255,2471.2,2470.8,0.8117]
[1747486758435,4.04645373,2471.3,2470.9,4.04709981]
[1747486758635,4.04645373,2471.3,2470.8,4.85883149]
[1747486758832,4.04636697,2471.4,2470.9,5.85332769]
[1747486759218,4.04646934,2471.3,2470.9,1.80624434]
[1747486759714,4.04646934,2471.3,2470.8,3.66513008]
[1747486760344,4.04637133,2471.4,2470.8,3.66513008]
[1747486760538,4.04637133,2471.4,2470.9,4.04701302]
[1747486760848,4.04646427,2471.3,2470.8,4.04718809]
[1747486761058,4.04646427,2471.3,2470.9,2.37506122]
[1747486761861,4.04646427,2471.3,2470.9,6.42214963]
[1747486762018,4.04646427,2471.3,2470.9,2.37506122]
[1747486762833,4.04646427,2471.3,2471.0,8.5958]
[1747486763347,4.04635626,2471.4,2471.0,8.5958]
[1747486763552,4.04623008,2471.5,2471.0,12.64271513]
[1747486764372,4.04603368,2471.6,2471.1,4.04669004]
[1747486764517,4.04614789,2471.5,2471.0,14.54912673]
[1747486764720,4.04608718,2471.6,2471.1,4.04676787]
[1747486765017,4.04608718,2471.6,2471.1,4.04669523]
[1747486765867,4.04615818,2471.5,2471.1,4.04669523]
[1747486766151,4.04615818,2471.5,2471.1,2.09710739]
[1747486766358,4.04630428,2471.4,2471.2,7.819]
[1747486766667,4.04615818,2471.5,2471.2,7.819]
[1747486766668,4.04619226,2471.5,2471.2,7.819]
[1747486767152,4.04604093,2471.6,2471.2,7.819]
[1747486767461,4.04567935,2471.8,2471.2,11.86561058]
[1747486768148,2.50280691,2471.9,2471.3,0.8141]
[1747486768149,6.54831422,2471.9,2471.3,0.8141]
[1747486768314,4.04586868,2471.7,2471.3,4.86054368]
[1747486768519,4.04586868,2471.7,2471.3,0.8141]
[1747486769748,4.0459747,2471.6,2471.3,0.8141]
[1747486770053,4.0459747,2471.6,2471.3,8.6321]
[1747486770217,4.0459747,2471.6,2471.3,0.8141]
[1747486770417,4.0459747,2471.6,2471.3,8.6321]
[1747486770616,4.0459747,2471.6,2471.3,0.8141]
[1747486770919,4.0459747,2471.6,2471.3,8.6321]
[1747486771138,4.85517408,2471.6,2471.2,7.818]
[1747486771454,4.04621438,2471.5,2471.2,7.818]
[1747486772276,4.04645328,2471.3,2471.2,7.818]
[1747486772443,4.04634844,2471.4,2471.2,7.818]
[1747486772648,4.04645328,2471.3,2470.8,4.86131405]
[1747486772874,4.04619978,2471.5,2471.1,7.818]
[1747486773684,4.0463492,2471.4,2471.1,7.818]
[1747486774563,4.04603697,2471.6,2471.1,11.86469399]
[1747486774761,4.04619997,2471.5,2471.1,7.818]
[1747486778775,6.30857465,2471.9,2471.1,7.818]
[1747486778943,4.04630723,2471.4,2471.1,7.818]
[1747486779366,4.04652588,2471.3,2470.8,0.8141]
[1747486779681,4.04636371,2471.4,2471.0,7.818]
[1747486780972,0.8263,2471.5,2471.0,11.86493143]
[1747486781177,4.04628652,2471.5,2471.0,11.86493143]
[1747486781562,4.04630285,2471.4,2471.0,11.86493143]
[1747486782077,0.8263,2471.7,2471.1,4.04678078]
[1747486782385,4.04579149,2471.8,2471.3,4.04638258]
[1747486782557,4.04579149,2471.8,2471.4,0.7556]
[1747486782757,4.0458371,2471.7,2471.4,0.7556]
[1747486782972,6.1458371,2471.7,2471.4,0.7556]
[1747486783269,4.04605081,2471.6,2471.4,8.5736]
[1747486784965,2.1,2471.7,2471.4,8.5736]
[1747486785170,4.0457733,2471.8,2471.4,8.5736]
[1747486785489,4.04580927,2471.7,2471.4,8.5736]
[1747486786342,4.04566905,2471.8,2471.4,8.5736]
[1747486787050,4.04551447,2471.9,2471.4,12.61985982]
[1747486787051,4.04554087,2471.9,2471.4,12.61985982]
[1747486788375,4.04523378,2472.1,2471.7,0.77]
[1747486788550,4.04531443,2472.0,2471.7,0.77]
[1747486789152,5.84531443,2472.0,2471.7,0.77]
[1747486790791,4.04550094,2471.9,2471.7,0.77]
[1747486793295,4.04563476,2471.8,2471.4,7.818]
[1747486793457,4.04563476,2471.8,2471.4,11.00086173]
[1747486793658,4.04550094,2471.9,2471.4,15.04704516]
[1747486793659,4.04553458,2471.9,2471.4,15.04704516]
[1747486794411,10.42580691,2472.3,2471.4,11.00086173]
[1747486794563,4.04546645,2472.0,2471.4,15.04705588]
[1747486794895,4.0451438,2472.1,2471.7,0.77]
[1747486795094,4.04499329,2472.2,2471.7,0.77]
[1747486795095,5.71545047,2472.3,2471.7,4.81568726]
[1747486795300,5.71555267,2472.3,2471.8,4.04563476]
[1747486795482,1.67060691,2472.3,2471.9,7.733]
[1747486795806,1.67060691,2472.3,2472.1,0.77]
[1747486796699,2.26730268,2472.6,2471.8,0.77]
[1747486796997,2.26730268,2472.6,2471.9,7.732]
[1747486797199,4.04509459,2472.2,2471.9,7.732]
[1747486799502,7.729,2472.5,2471.9,7.732]
[1747486799503,4.04490892,2472.3,2471.9,11.77744941]
[1747486799800,4.04490892,2472.3,2471.9,7.732]
[1747486800006,4.04474106,2472.4,2471.9,11.777407]
[1747486800221,4.04452682,2472.5,2472.0,5.70455461]
[1747486800420,1.8,2472.3,2472.2,4.04498017]
[1747486800705,1.8,2472.3,2472.2,4.83958017]
[1747486800898,4.04410006,2472.8,2472.3,4.04475037]
[1747486801091,4.04410006,2472.8,2472.4,8.62043305]
[1747486801092,4.04407974,2472.8,2472.4,8.62043305]
[1747486801688,4.04419224,2472.7,2472.4,8.62043305]
[1747486801864,4.04460183,2472.5,2472.4,7.732]
[1747486802697,4.04438149,2472.6,2472.4,7.732]
[1747486803303,4.04424014,2472.7,2472.4,7.732]
[1747486803515,4.04399581,2472.9,2472.4,11.77658577]
[1747486804001,4.04399581,2472.9,2472.5,0.778]
[1747486804191,4.04399581,2472.9,2472.6,1.25545858]
[1747486804499,4.04404823,2472.8,2472.4,6.76545858]
[1747486804808,4.04391437,2472.9,2472.4,10.81004971]
[1747486805102,4.04391398,2472.9,2472.4,10.81004932]
[1747486805638,7.733,2473.1,2472.4,6.76545858]
[1747486805639,4.04447041,2472.6,2472.4,6.76545858]
[1747486807191,4.04423541,2472.7,2472.4,6.76545858]
[1747486807369,4.04423541,2472.7,2472.3,0.778]
[1747486807575,4.04423541,2472.7,2472.3,13.44061972]
[1747486807774,4.04423541,2472.7,2472.3,9.3958088]
[1747486809208,0.8093,2472.5,2472.0,17.47]
[1747486809624,1.67060691,2472.9,2472.1,0.8198]
[1747486809791,4.0440735,2472.8,2472.3,4.04469025]
[1747486810127,4.04472052,2472.4,2472.3,7.73]
[1747486810326,4.0444542,2472.6,2472.3,7.73]
[1747486810487,0.8093,2472.7,2472.1,0.8198]
[1747486810690,0.8093,2472.7,2472.1,8.5498]
[1747486810691,4.04475435,2472.4,2472.1,8.5498]
[1747486810891,2.38017216,2472.7,2472.1,8.5498]
[1747486811094,4.04445329,2472.6,2472.1,4.86486677]
[1747486811291,4.04445329,2472.6,2472.1,12.59486677]
[1747486811600,4.04445329,2472.6,2472.2,4.04497375]
[1747486811804,4.85355801,2472.7,2472.2,4.04497375]
[1747486812826,4.04438481,2472.6,2472.1,12.59485752]